Workbook

Sheet ORÇ EDITAL
B2: PREFEITURA MUNICIPAL DE PORTO ALEGRE
B3: SECRETARIA MUNICIPAL DE SERVIÇOS URBANOS
B5: CONTRATO:
B6: CONTRATAÇÃO DE EMPRESA DE CONSULTORIA TÉCNICA ESPECIALIZADA PARA PRESTAÇÃO DE SERVIÇOS DE VERIFICAÇÃO INDEPENDENTE DO CONTRATO DE CONCESSÃO DOS SERVIÇOS DE ILUMINAÇÃO PÚBLICA
B7: PPP Iluminação Pública de Porto Alegre
B10: ORÇAMENTO ANALÍTICO
B13: ITEM | C13: REFERÊNCIA | D13: CÓDIGO | E13: DESCRIÇÃO | F13: UNID | G13: QUANT | H13: PREÇO UNITÁRIO | I13: PREÇO TOTAL
B14: 01.00 | E14: CONSULTORIA TÉCNICA ESPECIALIZADA PARA PRESTAÇÃO DE SERVIÇOS DE VERIFICAÇÃO INDEPENDENTE
B15: 01.01.00 | E15: Etapa I - Planejamento e Estruturação (Duração 4 meses) - Regime de Empreitada por Preço Global
B16: 01.01.01 | C16: ETAPA | D16: I** | E16: PRESTAÇÃO DE SERVIÇOS REFERENTES À ETAPA I - PLANEJAMENTO E ESTRUTURAÇÃO, DE CONSULTORIA ESPECIALIZADA PARA VERIFICAÇÃO INDEPENDENTE | F16: un | G16: 1 | H16: ='MEMÓRIA CÁLCULO ETAPA I'!E50 -> 483307.7 | I16: =G16*H16 -> 483307.7
B17: Total do item 01.01.00 | I17: =SUM(I16) -> 483307.7
B19: 01.02.00 | E19: Etapa II - Gestão e Operação (Duração 56 meses) - Regime de Empreitada por Preço Global
B20: 01.02.01 | C20: ETAPA | D20: II** | E20: PRESTAÇÃO DE SERVIÇOS REFERENTES À ETAPA II - GESTÃO E OPERAÇÃO, DE CONSULTORIA ESPECIALIZADA PARA VERIFICAÇÃO INDEPENDENTE | F20: un | G20: 1 | H20: ='MEMÓRIA CÁLCULO ETAPA II'!E50 -> 2819294.94 | I20: =G20*H20 -> 2819294.94
B21: Total do item 01.02.00 | I21: =SUM(I20) -> 2819294.94
B23: 01.03.00 | E23: Etapa III - Suporte e Análises Econômico-Financeiras (Sob Demanda) - Regime de Empreitada por Preços Unitários ***
B24: 01.03.01 | C24: COMPOSIÇÃO | D24: COMP P23* | E24: RELATÓRIO ANÁLISE REEQUILÍBRIO ECONÔMICO FINANCEIRO (PRODUTO P23) | F24: un | G24: 5 | H24: =COMPOSIÇÕES!H13 -> 3313.92 | I24: =G24*H24 -> 16569.6
B25: 01.03.02 | C25: COMPOSIÇÃO | D25: COMP P24* | E25: RELATÓRIO ANÁLISE PLANO DE NEGÓCIOS (PRODUTO P24) | F25: un | G25: 5 | H25: =COMPOSIÇÕES!H18 -> 1864.08 | I25: =G25*H25 -> 9320.4
B26: 01.03.03 | C26: COMPOSIÇÃO | D26: COMP P25* | E26: RELATÓRIO MODELAGEM FINANCEIRA (PRODUTO P25) | F26: un | G26: 2 | H26: =COMPOSIÇÕES!H23 -> 2692.56 | I26: 5385.12
B27: Total do item 01.03.00 | I27: =SUM(I24:I26) -> 31275.12
B29: TOTAL GERAL | I29: =SUM(I17,I21,I27) -> 3333877.76
B32: * NOTA 1: Custo unitário das composições obtido na aba "COMPOSIÇÕES"
B33: ** NOTA 2: Custo global das Etapas I e II obtidos nas abas "MEMÓRIA CÁLCULO ETAPA I" e "MEMÓRIA CÁLCULO ETAPA II"
B34: *** NOTA 3: A execução dos RELATÓRIOS da Etapa III se dará sob demanda. O CONTRATANTE não se vincula à contratação de uma quantidade mínima dos RELATÓRIOS da Etapa III.
B36: COMPILAÇÃO DE VALORES POR ETAPAS E VALOR TOTAL PARA PORTO ALEGRE
D38: Etapa | E38: Descrição | F38: Valor do CONTRATO (POA) | G38: *Percentual relativo ao valor total do CONTRATO
D39: I | E39: Planejamento e Estruturação | F39: =I17 -> 483307.7 | G39: =Tabela7172126[[#This Row],[Valor do CONTRATO (POA)]]/$F$42 -> 0.1449686326 | I39: '
D40: II | E40: Gestão e Operação | F40: =I21 -> 2819294.94 | G40: =Tabela7172126[[#This Row],[Valor do CONTRATO (POA)]]/$F$42 -> 0.8456503636
D41: III | E41: Suporte e Análises Econômico-Financeiras | F41: =I27 -> 31275.12 | G41: =Tabela7172126[[#This Row],[Valor do CONTRATO (POA)]]/$F$42 -> 0.009381003819
E42: Valor Total do Contrato (POA): | F42: =SUBTOTAL(109,Tabela7172126[Valor do CONTRATO (POA)]) -> 3333877.76 | G42: =SUBTOTAL(109,Tabela7172126[*Percentual relativo ao valor total do CONTRATO]) -> 1

Sheet MEMÓRIA CÁLCULO ETAPA I
B2: PREFEITURA MUNICIPAL DE PORTO ALEGRE
B3: SECRETARIA MUNICIPAL DE SERVIÇOS URBANOS
B5: CONTRATO:
B6: CONTRATAÇÃO DE EMPRESA DE CONSULTORIA TÉCNICA ESPECIALIZADA PARA PRESTAÇÃO DE SERVIÇOS DE VERIFICAÇÃO INDEPENDENTE DO CONTRATO DE CONCESSÃO DOS SERVIÇOS DE ILUMINAÇÃO PÚBLICA
B7: PPP Iluminação Pública de Porto Alegre
B9: MEMÓRIA DE CÁLCULO DOS PREÇOS DA ETAPA I - PLANEJAMENTO E ESTRUTURAÇÃO
B11: VALORES DE CONTRATAÇÃO DE VERIFICADOR INDEPENDENTE EM OUTROS MUNICÍPIOS
C13: Município | D13: Modalidade e Tipo | E13: Qtde. de pontos de IP | F13: Vencedora | G13: Data Contrato | H13: Valor do CONTRATO | I13: Atualização IPCA para Junho/2021* | J13: Valor do CONTRATO atualizado
C14: BELO HORIZONTE | D14: Concorrência técnica e preço | E14: 185000 | F14: ERNST & YOUNG | G14: 1/12/2017 | H14: 6999997 | I14: 0.1787644 | J14: =TRUNC(H14*(1+I14),2) -> 8251347.26
C15: UBERLÂNDIA | D15: Concorrência menor preço | E15: 86000 | F15: HOUER | G15: 16/04/2020 | H15: 2633715 | I15: 0.0788034 | J15: =TRUNC(H15*(1+I15),2) -> 2841260.69
C16: TERESINA | D16: Concorrência técnica e preço | E16: 96000 | F16: ERNST & YOUNG | G16: 19/11/2020 | H16: 5163212 | I16: 0.0610239 | J16: =TRUNC(H16*(1+I16),2) -> 5478291.33
C17: *FONTE: https://www3.bcb.gov.br/CALCIDADAO/publico/exibirFormCorrecaoValores.do?method=exibirFormCorrecaoValores
B19: VALORES RELATIVOS À ETAPA I - PLANEJAMENTO E ESTRUTURAÇÃO
C21: Município | D21: Qtde. de pontos de IP no município avaliado | E21: Valor do CONTRATO Atualizado no município avaliado | F21: Valor do CONTRATO relativo à Etapa I - Planejamento e Estruturação (12,00%) | G21: NOTA: O valor da Etapa I nas contratações dos municípios pesquisados equivale à 12,00% do valor total do Contrato
C22: BELO HORIZONTE | D22: =$E$14 -> 185000 | E22: =$J$14 -> 8251347.26 | F22: =Tabela4712172223[[#This Row],[Valor do CONTRATO Atualizado no município avaliado]]*0.12 -> 990161.6712
C23: UBERLÂNDIA | D23: =$E$15 -> 86000 | E23: =$J$15 -> 2841260.69 | F23: =Tabela4712172223[[#This Row],[Valor do CONTRATO Atualizado no município avaliado]]*0.12 -> 340951.2828
C24: TERESINA | D24: =$E$16 -> 96000 | E24: =$J$16 -> 5478291.33 | F24: =Tabela4712172223[[#This Row],[Valor do CONTRATO Atualizado no município avaliado]]*0.12 -> 657394.9596
C26: Município | D26: Qtde. de pontos de IP no município avaliado | E26: Valor do CONTRATO relativo à Etapa I no município avaliado | F26: Qtde. de pontos de IP em PORTO ALEGRE | G26: Proporcionalização do Valor da Etapa I nos municípios avaliados considerando a quantidade de pontos de IP de PORTO ALEGRE (103.750 pontos) | H26: NOTA: Nesta coluna são calculadas as previsões de valores da Etapa I para PORTO ALEGRE, considerando os valores da Etapa I dos municípios avaliados e a proporção da dimensão do parque de POA em relação aos demais municípios.
C27: BELO HORIZONTE | D27: =$E$14 -> 185000 | E27: =F22 -> 990161.6712 | F27: 103750 | G27: =E27*($F$27/D27) -> 555293.3697
C28: UBERLÂNDIA | D28: =$E$15 -> 86000 | E28: =F23 -> 340951.2828 | G28: =E28*($F$27/D28) -> 411322.0417
C29: TERESINA | D29: =$E$16 -> 96000 | E29: 657394.9596 | G29: 710465.9069
C31: AVALIAÇÃO DOS PREÇOS EXCESSIVAMENTE ELEVADOS**
C32: Município | D32: Proporcionalização do Valor da Etapa I nos municípios avaliados considerando a quantidade de pontos de IP de PORTO ALEGRE (103.750 pontos) | E32: Média dos demais valores | F32: Percentual em relação à média dos demais preços | G32: Avaliação dos preços EXCESSIVAMENTE ELEVADOS considerando metodologia demonstrada em orientação do STJ** | H32: NOTA: Compara a cotação em análise em relação às médias das demais cotações e a descarta se o resultado for superior a 30% da média dos demais valores
C33: BELO HORIZONTE | D33: =G27 -> 555293.3697 | E33: =AVERAGE(D34:D35) -> 560893.9743 | F33: =D33/E33 -> 0.9900148604 | G33: VÁLIDO
C34: UBERLÂNDIA | D34: =G28 -> 411322.0417 | E34: =AVERAGE(D33,D35) -> 632879.6383 | F34: =D34/E34 -> 0.6499214335 | G34: VÁLIDO
C35: TERESINA | D35: =G29 -> 710465.9069 | E35: =AVERAGE(D33:D34) -> 483307.7057 | F35: 1.470007406 | G35: EXCESSIVO | H35: DESCARTADO
C36: ** FONTE: https://www.stj.jus.br/publicacaoinstitucional/index.php/MOP/article/view/3495/3618
C38: AVALIAÇÃO DOS PREÇOS INEXEQUÍVEIS**
C39: Município | D39: Proporcionalização do Valor da Etapa I nos municípios avaliados considerando a quantidade de pontos de IP de PORTO ALEGRE (103.750 pontos) | E39: Média dos demais valores | F39: Percentual em relação à média dos demais preços | G39: Avaliação dos preços INEXEQUÍVEIS considerando metodologia demonstrada em orientação do STJ** | H39: NOTA: Compara a cotação em análise em relação às médias das demais cotações e a descarta se o resultado for inferior a 70% da média dos demais valores
C40: BELO HORIZONTE | D40: =G27 -> 555293.3697 | E40: =AVERAGE(D41) -> 411322.0417 | F40: =D40/E40 -> 1.350020941 | G40: VÁLIDO
C41: UBERLÂNDIA | D41: =G28 -> 411322.0417 | E41: =AVERAGE(D40) -> 555293.3697 | F41: =D41/E41 -> 0.7407292509 | G41: VÁLIDO
C42: TERESINA | D42: =G29 -> 710465.9069 | E42: =AVERAGE(D40:D41) -> 483307.7057 | F42: 1.470007406 | G42: EXCESSIVO | H42: DESCARTADO
C43: ** FONTE: https://www.stj.jus.br/publicacaoinstitucional/index.php/MOP/article/view/3495/3618
D45: Município | E45: VALOR DA ETAPA I PORTO ALEGRE (103.750 pontos) | F45: NOTA: Faz a média dos valores considerados válidos nos demais municípios, já proporcionalizados para o tamanho do parque de IP de POA, e o atribui para a Etapa I de Porto Alegre
D46: BELO HORIZONTE | E46: =D40 -> 555293.3697
D47: UBERLÂNDIA | E47: =D41 -> 411322.0417
D48: TERESINA | E48: =D42 -> 710465.9069 | F48: DESCARTADO
D49: Valor médio Etapa I: | E49: =TRUNC(AVERAGE(E46:E47),2) -> 483307.7
D50: Valor da Etapa I (POA): | E50: =E49 -> 483307.7

Sheet MEMÓRIA CÁLCULO ETAPA II
B2: PREFEITURA MUNICIPAL DE PORTO ALEGRE
B3: SECRETARIA MUNICIPAL DE SERVIÇOS URBANOS
B5: CONTRATO:
B6: CONTRATAÇÃO DE EMPRESA DE CONSULTORIA TÉCNICA ESPECIALIZADA PARA PRESTAÇÃO DE SERVIÇOS DE VERIFICAÇÃO INDEPENDENTE DO CONTRATO DE CONCESSÃO DOS SERVIÇOS DE ILUMINAÇÃO PÚBLICA
B7: PPP Iluminação Pública de Porto Alegre
B9: MEMÓRIA DE CÁLCULO DOS PREÇOS DA ETAPA II - GESTÃO E OPERAÇÃO
B11: VALORES DE CONTRATAÇÃO DE VERIFICADOR INDEPENDENTE EM OUTROS MUNICÍPIOS
C13: Município | D13: Modalidade e Tipo | E13: Qtde. de pontos de IP | F13: Vencedora | G13: Data Contrato | H13: Valor do CONTRATO | I13: Atualização IPCA para Junho/2021* | J13: Valor do CONTRATO atualizado
C14: BELO HORIZONTE | D14: Concorrência técnica e preço | E14: 185000 | F14: ERNST & YOUNG | G14: 1/12/2017 | H14: 6999997 | I14: 0.1787644 | J14: =TRUNC(H14*(1+I14),2) -> 8251347.26
C15: UBERLÂNDIA | D15: Concorrência menor preço | E15: 86000 | F15: HOUER | G15: 16/04/2020 | H15: 2633715 | I15: 0.0788034 | J15: =TRUNC(H15*(1+I15),2) -> 2841260.69
C16: TERESINA | D16: Concorrência técnica e preço | E16: 96000 | F16: ERNST & YOUNG | G16: 19/11/2020 | H16: 5163212 | I16: 0.0610239 | J16: =TRUNC(H16*(1+I16),2) -> 5478291.33
C17: *FONTE: https://www3.bcb.gov.br/CALCIDADAO/publico/exibirFormCorrecaoValores.do?method=exibirFormCorrecaoValores
B19: VALORES RELATIVOS À ETAPA II - GESTÃO E OPERAÇÃO
C21: Município | D21: Qtde. de pontos de IP no município avaliado | E21: Valor do CONTRATO Atualizado no município avaliado | F21: Valor do CONTRATO relativo à Etapa II - Gestão e Operação (70,00%) | G21: NOTA: O valor da Etapa II nas contratações dos municípios pesquisados equivale à 70,00% do valor total do Contrato
C22: BELO HORIZONTE | D22: =$E$14 -> 185000 | E22: =$J$14 -> 8251347.26 | F22: =Tabela47121722236[[#This Row],[Valor do CONTRATO Atualizado no município avaliado]]*0.7 -> 5775943.082
C23: UBERLÂNDIA | D23: =$E$15 -> 86000 | E23: =$J$15 -> 2841260.69 | F23: =Tabela47121722236[[#This Row],[Valor do CONTRATO Atualizado no município avaliado]]*0.7 -> 1988882.483
C24: TERESINA | D24: =$E$16 -> 96000 | E24: =$J$16 -> 5478291.33 | F24: =Tabela47121722236[[#This Row],[Valor do CONTRATO Atualizado no município avaliado]]*0.7 -> 3834803.931
C26: Município | D26: Qtde. de pontos de IP no município avaliado | E26: Valor do CONTRATO relativo à Etapa II no município avaliado | F26: Qtde. de pontos de IP em PORTO ALEGRE | G26: Proporcionalização do Valor da Etapa II nos municípios avaliados considerando a quantidade de pontos de IP de PORTO ALEGRE (103.750 pontos) | H26: NOTA: Nesta coluna são calculadas as previsões de valores da Etapa II para PORTO ALEGRE, considerando os valores da Etapa II dos municípios avaliados e a proporção da dimensão do parque de POA em relação aos demais municípios.
C27: BELO HORIZONTE | D27: =$E$14 -> 185000 | E27: =F22 -> 5775943.082 | F27: 103750 | G27: =E27*($F$27/D27) -> 3239211.323
C28: UBERLÂNDIA | D28: =$E$15 -> 86000 | E28: =F23 -> 1988882.483 | G28: =E28*($F$27/D28) -> 2399378.577
C29: TERESINA | D29: =$E$16 -> 96000 | E29: 3834803.931 | G29: 4144384.457
C31: AVALIAÇÃO DOS PREÇOS EXCESSIVAMENTE ELEVADOS**
C32: Município | D32: Proporcionalização do Valor da Etapa II nos municípios avaliados considerando a quantidade de pontos de IP de PORTO ALEGRE (103.750 pontos) | E32: Média dos demais valores | F32: Percentual em relação à média dos demais preços | G32: Avaliação dos preços EXCESSIVAMENTE ELEVADOS considerando metodologia demonstrada em orientação do STJ** | H32: NOTA: Compara a cotação em análise em relação às médias das demais cotações e a descarta se o resultado for superior a 30% da média dos demais valores
C33: BELO HORIZONTE | D33: =G27 -> 3239211.323 | E33: =AVERAGE(D34:D35) -> 3271881.517 | F33: =D33/E33 -> 0.9900148604 | G33: VÁLIDO
C34: UBERLÂNDIA | D34: =G28 -> 2399378.577 | E34: =AVERAGE(D33,D35) -> 3691797.89 | F34: =D34/E34 -> 0.6499214335 | G34: VÁLIDO
C35: TERESINA | D35: =G29 -> 4144384.457 | E35: =AVERAGE(D33:D34) -> 2819294.95 | F35: 1.470007406 | G35: EXCESSIVO | H35: DESCARTADO
C36: ** FONTE: https://www.stj.jus.br/publicacaoinstitucional/index.php/MOP/article/view/3495/3618
C38: AVALIAÇÃO DOS PREÇOS INEXEQUÍVEIS**
C39: Município | D39: Proporcionalização do Valor da Etapa II nos municípios avaliados considerando a quantidade de pontos de IP de PORTO ALEGRE (103.750 pontos) | E39: Média dos demais valores | F39: Percentual em relação à média dos demais preços | G39: Avaliação dos preços INEXEQUÍVEIS considerando metodologia demonstrada em orientação do STJ** | H39: NOTA: Compara a cotação em análise em relação às médias das demais cotações e a descarta se o resultado for inferior a 70% da média dos demais valores
C40: BELO HORIZONTE | D40: =G27 -> 3239211.323 | E40: =AVERAGE(D41) -> 2399378.577 | F40: =D40/E40 -> 1.350020941 | G40: VÁLIDO
C41: UBERLÂNDIA | D41: =G28 -> 2399378.577 | E41: =AVERAGE(D40) -> 3239211.323 | F41: =D41/E41 -> 0.7407292509 | G41: VÁLIDO
C42: TERESINA | D42: =G29 -> 4144384.457 | E42: =AVERAGE(D40:D41) -> 2819294.95 | F42: 1.470007406 | G42: EXCESSIVO | H42: DESCARTADO
C43: ** FONTE: https://www.stj.jus.br/publicacaoinstitucional/index.php/MOP/article/view/3495/3618
D45: Município | E45: VALOR DA ETAPA II PORTO ALEGRE (103.750 pontos) | F45: NOTA: Faz a média dos valores considerados válidos nos demais municípios, já proporcionalizados para o tamanho do parque de IP de POA, e o atribui para a Etapa II de Porto Alegre
D46: BELO HORIZONTE | E46: =D40 -> 3239211.323
D47: UBERLÂNDIA | E47: =D41 -> 2399378.577
D48: TERESINA | E48: =D42 -> 4144384.457 | F48: DESCARTADO
D49: Valor médio Etapa II: | E49: =TRUNC(AVERAGE(E46:E47),2) -> 2819294.94
D50: Valor da Etapa II (POA): | E50: =E49 -> 2819294.94

Sheet MEM CÁLCULO ETAPA III
B2: PREFEITURA MUNICIPAL DE PORTO ALEGRE
B3: SECRETARIA MUNICIPAL DE SERVIÇOS URBANOS
B5: CONTRATO:
B6: CONTRATAÇÃO DE EMPRESA DE CONSULTORIA TÉCNICA ESPECIALIZADA PARA PRESTAÇÃO DE SERVIÇOS DE VERIFICAÇÃO INDEPENDENTE DO CONTRATO DE CONCESSÃO DOS SERVIÇOS DE ILUMINAÇÃO PÚBLICA
B7: PPP Iluminação Pública de Porto Alegre
B9: MEMÓRIA DE CÁLCULO DO PREÇO/HORA DA ETAPA III - SUPORTE E ANÁLISES ECONÔMICO-FINANCEIRAS
B11: VALORES DE CONTRATAÇÃO DE VERIFICADOR INDEPENDENTE EM OUTROS MUNICÍPIOS
C13: Município | D13: Modalidade e Tipo | E13: Qtde. de pontos de IP | F13: Vencedora | G13: Data Contrato | H13: Valor do CONTRATO | I13: Atualização IPCA para Junho/2021* | J13: Valor do CONTRATO atualizado
C14: BELO HORIZONTE | D14: Concorrência técnica e preço | E14: 185000 | F14: ERNST & YOUNG | G14: 1/12/2017 | H14: 6999997 | I14: 0.1787644 | J14: =TRUNC(H14*(1+I14),2) -> 8251347.26
C15: UBERLÂNDIA | D15: Concorrência menor preço | E15: 86000 | F15: HOUER | G15: 16/04/2020 | H15: 2633715 | I15: 0.0788034 | J15: =TRUNC(H15*(1+I15),2) -> 2841260.69
C16: TERESINA | D16: Concorrência técnica e preço | E16: 96000 | F16: ERNST & YOUNG | G16: 19/11/2020 | H16: 5163212 | I16: 0.0610239 | J16: =TRUNC(H16*(1+I16),2) -> 5478291.33
C17: *FONTE: https://www3.bcb.gov.br/CALCIDADAO/publico/exibirFormCorrecaoValores.do?method=exibirFormCorrecaoValores
B19: VALORES RELATIVOS AO CUSTO DO PREÇO/HORA DA ETAPA III - SUPORTE E ANÁLISES ECONÔMICO-FINANCEIRAS
C21: Município | D21: Qtde. de pontos de IP no município avaliado | E21: Valor do CONTRATO Atualizado no município avaliado | F21: Valor do CONTRATO relativo à Etapa III - Suporte e Análises Econômico-Financeiras (18,00%)* - REFERENTE À 7.000 HORAS | G21: NOTA: O valor da Etapa III nas contratações dos municípios pesquisados equivale à 18,00% do valor total do Contrato, e foi estimado nestes município um limite máximo de 7.000 horas de mão de obra para execução dos serviços.
C22: BELO HORIZONTE | D22: =$E$14 -> 185000 | E22: =$J$14 -> 8251347.26 | F22: =Tabela47121722236811[[#This Row],[Valor do CONTRATO Atualizado no município avaliado]]*0.18 -> 1485242.507
C23: UBERLÂNDIA | D23: =$E$15 -> 86000 | E23: =$J$15 -> 2841260.69 | F23: =Tabela47121722236811[[#This Row],[Valor do CONTRATO Atualizado no município avaliado]]*0.18 -> 511426.9242
C24: TERESINA | D24: =$E$16 -> 96000 | E24: =$J$16 -> 5478291.33 | F24: =Tabela47121722236811[[#This Row],[Valor do CONTRATO Atualizado no município avaliado]]*0.18 -> 986092.4394
C26: Município | D26: Qtde. de pontos de IP no município avaliado | E26: Valor do CONTRATO relativo à Etapa III no município avaliado | F26: Qtde. de pontos de IP em PORTO ALEGRE | G26: Proporcionalização do Valor da Etapa III nos municípios avaliados considerando a quantidade de pontos de IP de PORTO ALEGRE (103.750 pontos) | H26: NOTA: Nesta coluna são calculadas as previsões de valores da Etapa III para PORTO ALEGRE, considerando os valores da Etapa III dos municípios avaliados e a proporção da dimensão do parque de POA em relação aos demais municípios.
C27: BELO HORIZONTE | D27: =$E$14 -> 185000 | E27: =F22 -> 1485242.507 | F27: 103750 | G27: =E27*($F$27/D27) -> 832940.0545
C28: UBERLÂNDIA | D28: =$E$15 -> 86000 | E28: =F23 -> 511426.9242 | G28: =E28*($F$27/D28) -> 616983.0626
C29: TERESINA | D29: =$E$16 -> 96000 | E29: 986092.4394 | G29: 1065698.86
C31: Município | D31: Proporcionalização do Valor da Etapa III nos municípios avaliados considerando a quantidade de pontos de IP de PORTO ALEGRE (103.750 pontos) | E31: Valor por HORA relativo à Etapa III - Suporte e Análises Econômico-Financeiras no município avaliado (considerando 7.000 horas) | F31: NOTA: Nos municípios avaliados foi adotado uma quantidade de 7.000 horas de mão de obra para execução dos serviços da Etapa III.
C32: BELO HORIZONTE | D32: =G27 -> 832940.0545 | E32: =Tabela471217222368912[[#This Row],[Proporcionalização do Valor da Etapa III nos municípios avaliados considerando a quantidade de pontos de IP de PORTO ALEGRE (103.750 pontos)]]/7000 -> 118.9914364
C33: UBERLÂNDIA | D33: =G28 -> 616983.0626 | E33: =Tabela471217222368912[[#This Row],[Proporcionalização do Valor da Etapa III nos municípios avaliados considerando a quantidade de pontos de IP de PORTO ALEGRE (103.750 pontos)]]/7000 -> 88.14043752
C34: TERESINA | D34: =G29 -> 1065698.86 | E34: =Tabela471217222368912[[#This Row],[Proporcionalização do Valor da Etapa III nos municípios avaliados considerando a quantidade de pontos de IP de PORTO ALEGRE (103.750 pontos)]]/7000 -> 152.2426943
C36: AVALIAÇÃO DOS PREÇOS EXCESSIVAMENTE ELEVADOS**
C37: Município | D37: Valor por HORA relativo à Etapa III - Suporte e Análises Econômico-Financeiras no município avaliado (considerando 7.000 horas) | E37: Média dos demais valores | F37: Percentual em relação à média dos demais preços | G37: Avaliação dos preços EXCESSIVAMENTE ELEVADOS considerando metodologia demonstrada em orientação do STJ** | H37: NOTA: Compara a cotação em análise em relação às médias das demais cotações e a descarta se o resultado for superior a 30% da média dos demais valores
C38: BELO HORIZONTE | D38: =$E$32 -> 118.9914364 | E38: =AVERAGE(D39:D40) -> 120.1915659 | F38: =D38/E38 -> 0.9900148604 | G38: VÁLIDO
C39: UBERLÂNDIA | D39: =$E$33 -> 88.14043752 | E39: =AVERAGE(D38,D40) -> 135.6170653 | F39: =D39/E39 -> 0.6499214335 | G39: VÁLIDO
C40: TERESINA | D40: =$E$34 -> 152.2426943 | E40: =AVERAGE(D38:D39) -> 103.5659369 | F40: 1.470007406 | G40: EXCESSIVO | H40: DESCARTADO
C41: ** FONTE: https://www.stj.jus.br/publicacaoinstitucional/index.php/MOP/article/view/3495/3618
C43: AVALIAÇÃO DOS PREÇOS INEXEQUÍVEIS**
C44: Município | D44: Valor por HORA relativo à Etapa III - Suporte e Análises Econômico-Financeiras no município avaliado (considerando 7.000 horas) | E44: Média dos demais valores | F44: Percentual em relação à média dos demais preços | G44: Avaliação dos preços INEXEQUÍVEIS considerando metodologia demonstrada em orientação do STJ** | H44: NOTA: Compara a cotação em análise em relação às médias das demais cotações e a descarta se o resultado for inferior a 70% da média dos demais valores
C45: BELO HORIZONTE | D45: =$E$32 -> 118.9914364 | E45: =AVERAGE(D46) -> 88.14043752 | F45: =D45/E45 -> 1.350020941 | G45: VÁLIDO
C46: UBERLÂNDIA | D46: =$E$33 -> 88.14043752 | E46: =AVERAGE(D45) -> 118.9914364 | F46: =D46/E46 -> 0.7407292509 | G46: VÁLIDO
C47: TERESINA | D47: =$E$34 -> 152.2426943 | E47: =AVERAGE(D45:D46) -> 103.5659369 | F47: 1.470007406 | G47: EXCESSIVO | H47: DESCARTADO
C48: ** FONTE: https://www.stj.jus.br/publicacaoinstitucional/index.php/MOP/article/view/3495/3618
D50: Município | E50: VALOR DO PREÇO/HORA DA ETAPA III PORTO ALEGRE (103.750 pontos) | F50: NOTA: Faz a média dos valores considerados válidos nos demais municípios, já proporcionalizados para o tamanho do parque de IP de POA, e o atribui para a Etapa III de Porto Alegre
D51: BELO HORIZONTE | E51: =D45 -> 118.9914364
D52: UBERLÂNDIA | E52: =D46 -> 88.14043752
D53: TERESINA | E53: =D47 -> 152.2426943 | F53: DESCARTADO
D54: Valor médio do Preço Hora da Etapa III: | E54: =TRUNC(AVERAGE(E51:E52),2) -> 103.56
D55: Valor do Preço Hora da Etapa IIII (POA): | E55: =E54 -> 103.56
B61: VALORES RELATIVOS À QUANTIDADE DE HORAS DE EXECUÇÃO DOS PRODUTOS DA ETAPA III - SUPORTE E ANÁLISES ECONÔMICO-FINANCEIRAS
D63: COTAÇÕES DE HORAS (EMPRESAS DO MERCADO) | E63: PRODUTO DA ETAPA III | F63: QUANTIDADE DE HORAS (OBTIDAS COM EMPRESAS DO MERCADO) | I63: Avaliação das Quantidades de Horas
F64: MÉDIA | G64: MEDIANA | H64: MENOR VALOR
E65: RELATÓRIO ANÁLISE REEQUILÍBRIO ECONÔMICO FINANCEIRO - P23 | F65: ='COTAÇÕES DE QUANTIDADE DE HORAS'!H16 -> 638 | G65: ='COTAÇÕES DE QUANTIDADE DE HORAS'!H17 -> 704 | H65: ='COTAÇÕES DE QUANTIDADE DE HORAS'!H18 -> 160 | I65: EXCESSIVO
E66: RELATÓRIO ANÁLISE PLANO DE NEGÓCIOS - P24 | F66: ='COTAÇÕES DE QUANTIDADE DE HORAS'!H26 -> 444 | G66: ='COTAÇÕES DE QUANTIDADE DE HORAS'!H27 -> 352 | H66: ='COTAÇÕES DE QUANTIDADE DE HORAS'!H28 -> 240 | I66: EXCESSIVO
E67: RELATÓRIO MODELAGEM FINANCEIRA - P25 | F67: ='COTAÇÕES DE QUANTIDADE DE HORAS'!H36 -> 521.3333333 | G67: ='COTAÇÕES DE QUANTIDADE DE HORAS'!H37 -> 620 | H67: ='COTAÇÕES DE QUANTIDADE DE HORAS'!H38 -> 240 | I67: EXCESSIVO
D69: Em análise às quantidades de horas (tabela acima) informadas pelas empresas do mercado para execução dos Produtos (RELATÓRIOS P23, P245 e P25) da Etapa III, a Área Técnica da CIP/SMSURB avaliou que as quantidades informadas pelas empresas são muito maiores que a necessidade real para a execução adequada dos referidos produtos, o que tornaria o preço unitário de cada um dos RELATÓRIOS fora da realidade de mercado. Desta forma, em se tratando de produtos cujas cargas horárias para execução não variam muito para diferentes escopos de objeto e que são usuais e comuns no portfólio das empresas e dos profissionais do mercado, a Área Técnica da CIP/SMSURB, na figura de profissional devidamente habilitado***, entendeu que as quantidades de horas estimadas na tabela abaixo são razoáveis para a execução satisfatória dos RELATÓRIOS a serem demandados, e implicando em preços igualmente razoáveis considerando a realidade do mercado. ***Profissional Habilitado: Bruno Franke Mangoni - Administrador CIP/SMSURB - Matrícula 135.6666_1 - CRA RS-049377/O
D71: COTAÇÕES DE HORAS (ESTIMATIVA ÁREA TÉCNICA CIP/SMSURB) | E71: PRODUTO DA ETAPA III | F71: QUANTIDADE DE HORAS ESTIMADAS PELA ÁREA TÉCNICA DA CIP/SMSURB - ADMINSTRAÇÃO
E72: RELATÓRIO ANÁLISE REEQUILÍBRIO ECONÔMICO FINANCEIRO - P23 | F72: 32 | G72: Horas
E73: RELATÓRIO ANÁLISE PLANO DE NEGÓCIOS - P24 | F73: 18 | G73: Horas
E74: RELATÓRIO MODELAGEM FINANCEIRA - P25 | F74: 26 | G74: Horas

Sheet Tabela Resumo Etapa III
B2: TABELA RESUMO DOS PRODUTOS PASSÍVEIS DE DEMANDA NA ETAPA III - SUPORTE E ANÁLISES ECONÔMICO-FINANCEIRAS
A3: Item do Projeto Básico | B3: RELATÓRIOS A SEREM SOLICITADOS NA ETAPA III | C3: ESTIMATIVA DE QUANTIDADE DE RELATÓRIOS PARA 60 MESES | D3: QUANTIDADE INDIVIDUAL DE HORAS DOS RELATÓRIOS* | E3: VALOR POR HORA RELATIVO À ETAPA III ** | F3: VALOR UNITÁRIO PARA O RELATÓRIO | G3: VALOR TOTAL PARA O RELATÓRIO
A4: ITEM 7.2.3 a. Realizar a gestão de pleitos relacionados às reivindicações que geram a necessidade de discussões referentes a reequilíbrios econômico-financeiros, suportando as decisões do CONTRATANTE por meio de análises técnicas e econômico-financeiras fundamentadas, sempre baseadas em metodologias objetivas e alinhadas previamente junto aos interessados; ITEM 7.3.3 c) Fornecer parecer técnico para subsidiar decisão do CONTRATANTE sobre pedido da CONCESSIONÁRIA para recomposição de seu equilíbrio econômico-financeiro: 30 (trinta) dias a partir do recebimento da manifestação da CONCESSIONÁRIA; d) Realizar a gestão de pleitos relacionados às reivindicações que geram a necessidade de discussões referentes a reequilíbrios econômico-financeiros, suportando as decisões do CONTRATANTE por meio de análises técnicas e econômico-financeiras fundamentadas; e) Analisar o cenário que originou a reinvindicação de REVISÃO EXTRAORDINÁRIA (para fins de recomposição do seu equilíbrio econômico-financeiro) frente aos termos contratuais que se aplicam ao pleito, gerando, ao final, um parecer técnico. O parecer técnico deverá dar suporte à análise econômico-financeira, na qual o gestor do CONTRATO DE CONCESSÃO e a CONTRATADA deverão avaliar e dimensionar, caso exista, o impacto econômico-financeiro do pleito no projeto; | B4: RELATÓRIO ANÁLISE REEQUILÍBRIO ECONÔMICO FINANCEIRO - P23 | C4: ='ORÇ EDITAL'!G24 -> 5 | D4: ='MEM CÁLCULO ETAPA III'!F72 -> 32 | E4: ='MEM CÁLCULO ETAPA III'!$E$55 -> 103.56 | F4: =E4*D4 -> 3313.92 | G4: =C4*F4 -> 16569.6
A5: ITEM 3 h) Avaliação dos Planos de Negócio apresentados pela CONCESSIONÁRIA para obtenção de receitas acessórias, a fim de subsidiar decisão do PODER CONCEDENTE quanto à autorização da exploração das atividades relacionadas, observando viabilidade e atendimento aos requisitos do CONTRATO DE CONCESSÃO, inclusive o percentual de compartilhamento das receitas. ITEM 7.2.3 c. Realizar análise do Plano de Negócios da CONCESSIONÁRIA referente às ATIVIDADES RELACIONADAS e propostas de compartilhamento das RECEITAS ACESSÓRIAS, a fim de subsidiar as decisões do CONTRATANTE; | B5: RELATÓRIO ANÁLISE PLANO DE NEGÓCIOS - P24 | C5: ='ORÇ EDITAL'!G25 -> 5 | D5: ='MEM CÁLCULO ETAPA III'!F73 -> 18 | E5: ='MEM CÁLCULO ETAPA III'!$E$55 -> 103.56 | F5: =E5*D5 -> 1864.08 | G5: =C5*F5 -> 9320.4
A6: ITEM 3 g) Realização de modelagens financeiras de interesse do Município relacionadas à concessão; ITEM 7.2.3 b. Realizar modelagens financeiras referentes ao aumento ou redução de escopo do contrato de concessão; ... d. Realizar modelagens financeiras de interesse do CONTRATANTE, relacionadas à concessão. ITEM 7.3.3 a) Realizar modelagens financeiras de interesse do CONTRATANTE relacionadas à CONCESSÃO; b) Realizar modelagens financeiras referentes ao aumento ou redução de escopo do CONTRATO DE CONCESSÃO; | B6: RELATÓRIO MODELAGEM FINANCEIRA - P25 | C6: ='ORÇ EDITAL'!G26 -> 2 | D6: ='MEM CÁLCULO ETAPA III'!F74 -> 26 | E6: ='MEM CÁLCULO ETAPA III'!$E$55 -> 103.56 | F6: =E6*D6 -> 2692.56 | G6: =C6*F6 -> 5385.12
G7: =SUM(G4:G6) -> 31275.12 | H7: CUSTO REFERENTE À ETAPA 3 DO CONTRATO
B9: * NOTA 1: Quantidade de Horas obtido na aba "MEM CÁLCULO ETAPA III"
B10: ** NOTA 2: Cálculo do Custo unitário por Hora obtido na aba "MEM CÁLCULO ETAPA III"

Sheet COMPOSIÇÕES
B2: PREFEITURA MUNICIPAL DE PORTO ALEGRE
B3: SECRETARIA MUNICIPAL DE SERVIÇOS URBANOS
B5: CONTRATO:
B6: CONTRATAÇÃO DE EMPRESA DE CONSULTORIA TÉCNICA ESPECIALIZADA PARA PRESTAÇÃO DE SERVIÇOS DE VERIFICAÇÃO INDEPENDENTE DO CONTRATO DE CONCESSÃO DOS SERVIÇOS DE ILUMINAÇÃO PÚBLICA
B7: PPP Iluminação Pública de Porto Alegre
B9: COMPOSIÇÕES DE CUSTO UNITÁRIO
B11: COMPOSIÇÃO | C11: COMP P23 | D11: RELATÓRIO ANÁLISE REEQUILÍBRIO ECONÔMICO FINANCEIRO (PRODUTO P23) | E11: UND | F11: QTDE DE HORAS* | G11: CUSTO UNIT** | H11: CUSTO TOTAL
D12: QUANTIDADE DE HORAS DE MÃO DE OBRA PARA EXECUÇÃO DO PRODUTO "RELATÓRIO ANÁLISE REEQUILÍBRIO ECONÔMICO FINANCEIRO" (PRODUTO P23) | E12: H | F12: ='MEM CÁLCULO ETAPA III'!F72 -> 32 | G12: ='MEM CÁLCULO ETAPA III'!$E$55 -> 103.56 | H12: =F12*G12 -> 3313.92
G13: TOTAL: | H13: =TRUNC(SUM(H12:H12),2) -> 3313.92
B16: COMPOSIÇÃO | C16: COMP P24 | D16: RELATÓRIO ANÁLISE PLANO DE NEGÓCIOS (PRODUTO P24) | E16: UND | F16: QTDE DE HORAS* | G16: CUSTO UNIT** | H16: CUSTO TOTAL
D17: QUANTIDADE DE HORAS DE MÃO DE OBRA PARA EXECUÇÃO DO PRODUTO "RELATÓRIO ANÁLISE PLANO DE NEGÓCIOS" (PRODUTO P24) | E17: H | F17: ='MEM CÁLCULO ETAPA III'!F73 -> 18 | G17: ='MEM CÁLCULO ETAPA III'!$E$55 -> 103.56 | H17: =F17*G17 -> 1864.08
G18: TOTAL: | H18: =TRUNC(SUM(H17:H17),2) -> 1864.08
B21: COMPOSIÇÃO | C21: COMP P25 | D21: RELATÓRIO MODELAGEM FINANCEIRA (PRODUTO P25) | E21: UND | F21: QTDE DE HORAS* | G21: CUSTO UNIT** | H21: CUSTO TOTAL
D22: QUANTIDADE DE HORAS DE MÃO DE OBRA PARA EXECUÇÃO DO PRODUTO "RELATÓRIO MODELAGEM FINANCEIRA" (PRODUTO P25) | E22: H | F22: ='MEM CÁLCULO ETAPA III'!F74 -> 26 | G22: ='MEM CÁLCULO ETAPA III'!$E$55 -> 103.56 | H22: =F22*G22 -> 2692.56
G23: TOTAL: | H23: =TRUNC(SUM(H22:H22),2) -> 2692.56
B26: * NOTA 1: Quantidade de Horas obtido na aba "MEM CÁLCULO ETAPA III"
B27: ** NOTA 2: Cálculo do Custo unitário por Hora obtido na aba "MEM CÁLCULO ETAPA III"

Sheet COTAÇÕES DE QUANTIDADE DE HORAS
B2: PREFEITURA MUNICIPAL DE PORTO ALEGRE
B3: SECRETARIA MUNICIPAL DE SERVIÇOS URBANOS
B5: CONTRATO:
B6: CONTRATAÇÃO DE EMPRESA DE CONSULTORIA TÉCNICA ESPECIALIZADA PARA PRESTAÇÃO DE SERVIÇOS DE VERIFICAÇÃO INDEPENDENTE DO CONTRATO DE CONCESSÃO DOS SERVIÇOS DE ILUMINAÇÃO PÚBLICA
B7: PPP Iluminação Pública de Porto Alegre
B9: COTAÇÕES DE QUANTIDADES DE HORAS PARA ELABORAÇÃO DOS RELATÓRIOS DA ETAPA III
B11: COT P23 | C11: QUANTIDADE DE HORAS DE MÃO DE OBRA PARA EXECUÇÃO DO PRODUTO "RELATÓRIO ANÁLISE REEQUILÍBRIO ECONÔMICO FINANCEIRO" (PRODUTO P23)
C12: Fornecedor | D12: CNPJ | E12: Contato | F12: Telefone | G12: Data da cotação | H12: Quantidade (Horas)
B13: a) | C13: HOUER | D13: 22.111.570/0001-91 | E13: Vladimir Azevedo | F13: (37) 99987-6347 | G13: 2021-08-04 | H13: 704
B14: b) | C14: ERNST & YOUNG | D14: 59.527.788/0001-31 | E14: Eduardo Augusto | F14: (61) 2104 0112 | G14: 2021-08-03 | H14: 1050
B15: c) | C15: MACIEL CONSULTORES | D15: 10.757.529/0001-08 | E15: André Gaspar | F15: 51 4000.1364 | G15: 2021-07-30 | H15: 160
G16: Média: | H16: =AVERAGE(H13:H15) -> 638 | I16: Horas
G17: Mediana: | H17: =MEDIAN(H13:H15) -> 704 | I17: Horas
G18: Menor valor: | H18: =SMALL(H13:H15,1) -> 160 | I18: Horas
B21: COT P24 | C21: QUANTIDADE DE HORAS DE MÃO DE OBRA PARA EXECUÇÃO DO PRODUTO "RELATÓRIO ANÁLISE PLANO DE NEGÓCIOS" (PRODUTO P24)
C22: Fornecedor | D22: CNPJ | E22: Contato | F22: Telefone | G22: Data da cotação | H22: Quantidade (Horas)
B23: a) | C23: HOUER | D23: 22.111.570/0001-91 | E23: Vladimir Azevedo | F23: (37) 99987-6347 | G23: 2021-08-04 | H23: 352
B24: b) | C24: ERNST & YOUNG | D24: 59.527.788/0001-31 | E24: Eduardo Augusto | F24: (61) 2104 0112 | G24: 2021-08-03 | H24: 740
B25: c) | C25: MACIEL CONSULTORES | D25: 10.757.529/0001-08 | E25: André Gaspar | F25: 51 4000.1364 | G25: 2021-07-30 | H25: 240
G26: Média: | H26: =AVERAGE(H23:H25) -> 444 | I26: Horas
G27: Mediana: | H27: =MEDIAN(H23:H25) -> 352 | I27: Horas
G28: Menor valor: | H28: =SMALL(H23:H25,1) -> 240 | I28: Horas
B31: COT P25 | C31: QUANTIDADE DE HORAS DE MÃO DE OBRA PARA EXECUÇÃO DO PRODUTO "RELATÓRIO MODELAGEM FINANCEIRA" (PRODUTO P25)
C32: Fornecedor | D32: CNPJ | E32: Contato | F32: Telefone | G32: Data da cotação | H32: Quantidade (Horas)
B33: a) | C33: HOUER | D33: 22.111.570/0001-91 | E33: Vladimir Azevedo | F33: (37) 99987-6347 | G33: 2021-08-04 | H33: 704
B34: b) | C34: ERNST & YOUNG | D34: 59.527.788/0001-31 | E34: Eduardo Augusto | F34: (61) 2104 0112 | G34: 2021-08-03 | H34: 620
B35: c) | C35: MACIEL CONSULTORES | D35: 10.757.529/0001-08 | E35: André Gaspar | F35: 51 4000.1364 | G35: 2021-07-30 | H35: 240
G36: Média: | H36: =AVERAGE(H33:H35) -> 521.3333333 | I36: Horas
G37: Mediana: | H37: =MEDIAN(H33:H35) -> 620 | I37: Horas
G38: Menor valor: | H38: =SMALL(H33:H35,1) -> 240 | I38: Horas
